OrganisationURI,OrganisationLabel,Organisation Unit,TransactionNumber,Invoice Ref.,Beneficiary Name,Expense Type,Purpose,Payment Date,Amount
http://statistics.data.gov.uk/id/local-authority-district/23UB,Cheltenham Borough Council,Repairs and Maintenance,14073315,2175458,A & E Fire and Security Ltd,R2042-HRA100,R & M of Build Fire Systems,06/12/2019,"1,470.82 "
http://statistics.data.gov.uk/id/local-authority-district/23UB,Cheltenham Borough Council,Repairs and Maintenance,14074193,2175494,A & E Fire and Security Ltd,R2042-HRA100,R & M of Build Fire Systems,13/12/2019,913.92 
http://statistics.data.gov.uk/id/local-authority-district/23UB,Cheltenham Borough Council,Repairs and Maintenance,14074399,220783,A & E Fire and Security Ltd,R2042-HRA100,R & M of Build Fire Systems,20/12/2019,715.36 
http://statistics.data.gov.uk/id/local-authority-district/23UB,Cheltenham Borough Council,Recreation Centre Repairs & Maintenance,14074165,401741,A & E Fire and Security Ltd,R2083-REC111,R&M of Build - Routine,13/12/2019,520.18 
http://statistics.data.gov.uk/id/local-authority-district/23UB,Cheltenham Borough Council,Bank Charges,14074080,201901019,Advam (UK) Limited,R4403-COR008,Bank Charges,06/12/2019,"1,577.96 "
http://statistics.data.gov.uk/id/local-authority-district/23UB,Cheltenham Borough Council,Cyber Business Park,14074204,7843,Allies and Morrison LLP,R4400-PLP105,Services - Professional Fees,13/12/2019,"6,500.00 "
http://statistics.data.gov.uk/id/local-authority-district/23UB,Cheltenham Borough Council,Press & PR/Communications,14074285,I19120106A,Alpha Papa Tango Limited,R4401-SUP018,Services - Fees and Charges,20/12/2019,750.00 
http://statistics.data.gov.uk/id/local-authority-district/23UB,Cheltenham Borough Council,Parliamentary Elections,14074199,32010,Alpha Response Print & Mail Limited,R4300-ELE004,Printing - Services,13/12/2019,"4,185.60 "
http://statistics.data.gov.uk/id/local-authority-district/23UB,Cheltenham Borough Council,Parliamentary Elections,14074198,32015,Alpha Response Print & Mail Limited,R4300-ELE004,Printing - Services,13/12/2019,"6,806.40 "
http://statistics.data.gov.uk/id/local-authority-district/23UB,Cheltenham Borough Council,Individual Electoral Registration,14074200,32025,Alpha Response Print & Mail Limited,R4300-ELE010,Printing - Services,13/12/2019,698.00 
http://statistics.data.gov.uk/id/local-authority-district/23UB,Cheltenham Borough Council,Parliamentary Elections,14074529,32044,Alpha Response Print & Mail Limited,R4300-ELE004,Printing - Services,30/12/2019,"5,436.00 "
http://statistics.data.gov.uk/id/local-authority-district/23UB,Cheltenham Borough Council,Window & Door Renewals,14074006,FT_Inv00005199.,Aperture Trading Ltd T/A Calibre Doors,C1107-CAH017,Building Works,06/12/2019,"6,717.94 "
http://statistics.data.gov.uk/id/local-authority-district/23UB,Cheltenham Borough Council,Window & Door Renewals,14074006,FT_Inv00005199.,Aperture Trading Ltd T/A Calibre Doors,C1107-CAH017,Building Works,06/12/2019,"19,318.60 "
http://statistics.data.gov.uk/id/local-authority-district/23UB,Cheltenham Borough Council,Window & Door Renewals,14074007,FT_Inv00005581.,Aperture Trading Ltd T/A Calibre Doors,C1107-CAH017,Building Works,06/12/2019,"11,579.32 "
http://statistics.data.gov.uk/id/local-authority-district/23UB,Cheltenham Borough Council,Window & Door Renewals,14074007,FT_Inv00005581.,Aperture Trading Ltd T/A Calibre Doors,C1107-CAH017,Building Works,06/12/2019,"34,289.16 "
http://statistics.data.gov.uk/id/local-authority-district/23UB,Cheltenham Borough Council,Window & Door Renewals,14073457,Inv00131202,Aperture Trading Ltd T/A Calibre Doors,C1107-CAH017,Building Works,03/12/2019,971.37 
http://statistics.data.gov.uk/id/local-authority-district/23UB,Cheltenham Borough Council,Window & Door Renewals,14073692,Inv00132516,Aperture Trading Ltd T/A Calibre Doors,C1107-CAH017,Building Works,03/12/2019,"10,916.86 "
http://statistics.data.gov.uk/id/local-authority-district/23UB,Cheltenham Borough Council,Parks & Gardens Repairs & Maintenance,14074194,1091,Ardagh Management Limited,R2081-OPS121,Roof Repairs,13/12/2019,"1,750.00 "
http://statistics.data.gov.uk/id/local-authority-district/23UB,Cheltenham Borough Council,Cheltenham Municipal Offices,14074542,1094,Ardagh Management Limited,R2024-ADB101,R & M of Build - Refurbishments,20/12/2019,645.00 
http://statistics.data.gov.uk/id/local-authority-district/23UB,Cheltenham Borough Council,Insurances,14074088,41147306,Arthur J Gallagher Insurance Brokers Limited,R2800-SUP035,Insurances - Premises,06/12/2019,"91,220.15 "
http://statistics.data.gov.uk/id/local-authority-district/23UB,Cheltenham Borough Council,Supervision and Management,14074088,41147306,Arthur J Gallagher Insurance Brokers Limited,R2801-HRA110,Insurances - Property All Risks,06/12/2019,"108,176.81 "
http://statistics.data.gov.uk/id/local-authority-district/23UB,Cheltenham Borough Council,Insurances,14074085,41147396,Arthur J Gallagher Insurance Brokers Limited,R1412-SUP035,Insurance - Professional Indemnity,06/12/2019,"78,209.60 "
http://statistics.data.gov.uk/id/local-authority-district/23UB,Cheltenham Borough Council,Fleet Management,14074086,41147466,Arthur J Gallagher Insurance Brokers Limited,R3500-SUP034,Insurance - Vehicles,06/12/2019,"16,391.20 "
http://statistics.data.gov.uk/id/local-authority-district/23UB,Cheltenham Borough Council,Insurances,14074084,41147538,Arthur J Gallagher Insurance Brokers Limited,R2802-SUP035,Insurances - Engineering/Computer,06/12/2019,"3,135.56 "
http://statistics.data.gov.uk/id/local-authority-district/23UB,Cheltenham Borough Council,Insurances,14074084,41147538,Arthur J Gallagher Insurance Brokers Limited,R2802-SUP035,Insurances - Engineering/Computer,06/12/2019,"12,265.05 "
http://statistics.data.gov.uk/id/local-authority-district/23UB,Cheltenham Borough Council,Insurances,14074087,41147613,Arthur J Gallagher Insurance Brokers Limited,R4960-SUP035,Insurances,06/12/2019,"2,669.09 "
http://statistics.data.gov.uk/id/local-authority-district/23UB,Cheltenham Borough Council,Insurances,14074083,41147671,Arthur J Gallagher Insurance Brokers Limited,R4960-SUP035,Insurances,06/12/2019,"15,358.56 "
http://statistics.data.gov.uk/id/local-authority-district/23UB,Cheltenham Borough Council,Insurances,14074082,41147770,Arthur J Gallagher Insurance Brokers Limited,R4960-SUP035,Insurances,06/12/2019,"17,665.76 "
http://statistics.data.gov.uk/id/local-authority-district/23UB,Cheltenham Borough Council,Recreation Centre Repairs & Maintenance,14074342,67444,AVT Reliability Pump Division,R2083-REC111,R&M of Build - Routine,13/12/2019,"1,273.00 "
http://statistics.data.gov.uk/id/local-authority-district/23UB,Cheltenham Borough Council,Miscellaneous Operational Properties,14074570,TW/2128,Bear Associates Surveyors Limited,R4400-ADB104,Services - Professional Fees,30/12/2019,"1,200.00 "
http://statistics.data.gov.uk/id/local-authority-district/23UB,Cheltenham Borough Council,Treasury Management,14074225,BGC-Nov-2019-00003187,BGC European Holdings,R4447-COR006,Brokerage Fees,13/12/2019,983.56 
http://statistics.data.gov.uk/id/local-authority-district/23UB,Cheltenham Borough Council,Treasury Management,14074226,BGC-Nov-2019-00003490,BGC European Holdings,R4447-COR006,Brokerage Fees,13/12/2019,"1,438.36 "
http://statistics.data.gov.uk/id/local-authority-district/23UB,Cheltenham Borough Council,Corporate Management,14074403,116979,BMG Research Limited,R4429-COR001,Services - other fees,20/12/2019,"6,650.00 "
http://statistics.data.gov.uk/id/local-authority-district/23UB,Cheltenham Borough Council,Oakley Resource Centre,14074261,978401655,British Gas Business,R2101-COM101,Gas,20/12/2019,591.72 
http://statistics.data.gov.uk/id/local-authority-district/23UB,Cheltenham Borough Council,Income and Expenditure on Investment Properties and Changes in Their Fair Value,14074263,991299965,British Gas Business,R2100-FIE040,Electricity,13/12/2019,990.04 
http://statistics.data.gov.uk/id/local-authority-district/23UB,Cheltenham Borough Council,Car Parks - Off Street Operations,14074568,56187,British Parking Association,R4701-CPK001,Subscriptions,30/12/2019,906.00 
http://statistics.data.gov.uk/id/local-authority-district/23UB,Cheltenham Borough Council,Cyber Business Park,14074376,IN-000031634,Browne Jacobson LLP,R4400-PLP105,Services - Professional Fees,13/12/2019,"1,365.00 "
http://statistics.data.gov.uk/id/local-authority-district/23UB,Cheltenham Borough Council,Cyber Business Park,14074376,IN-000031634,Browne Jacobson LLP,R4400-PLP105,Services - Professional Fees,13/12/2019,"3,131.00 "
http://statistics.data.gov.uk/id/local-authority-district/23UB,Cheltenham Borough Council,Cheltenham Municipal Offices,14074272,08/403602,Bunzl Cleaning and Hygiene Supplies,R4009-ADB101,Materials - Cleaning Materials,13/12/2019,804.74 
http://statistics.data.gov.uk/id/local-authority-district/23UB,Cheltenham Borough Council,Air Quality,14074044,19012593,Bureau Veritas UK Limited,R4400-REG012,Services - Professional Fees,13/12/2019,"1,800.00 "
http://statistics.data.gov.uk/id/local-authority-district/23UB,Cheltenham Borough Council,ICT 5 year Infrastructure Strategy,14074187,246359,CAE Technology Services Limited,C4000-CAP026,Acquisition of Equipment,13/12/2019,"7,750.00 "
http://statistics.data.gov.uk/id/local-authority-district/23UB,Cheltenham Borough Council,Democratic Representation and Management,14073922,19/12801,Campbell Tickell Limited,R4400-DRM001,Services - Professional Fees,13/12/2019,"2,125.00 "
http://statistics.data.gov.uk/id/local-authority-district/23UB,Cheltenham Borough Council,Recreation Centre Repairs & Maintenance,14074343,301267/11/2019,Centrica Business Solutions (Generations) limited,R2100-REC111,Electricity,13/12/2019,"3,154.84 "
http://statistics.data.gov.uk/id/local-authority-district/23UB,Cheltenham Borough Council,General Fund Balance Sheet,14074207,CBID0099,Cheltenham Bid Limited,B5120-BAL100,Short Term Debtors (incl PIA) - AR control account (reallocated),04/12/2019,-506.00 
http://statistics.data.gov.uk/id/local-authority-district/23UB,Cheltenham Borough Council,Cheltenham Business Improvement District (BID) Levy,14074207,CBID0099,Cheltenham Bid Limited,R4974-HLD160,Reimbursement to other L.A.'s,04/12/2019,"14,055.80 "
http://statistics.data.gov.uk/id/local-authority-district/23UB,Cheltenham Borough Council,Community Welfare Grants,14072333,80007726,Cheltenham Leisure and Culture Limited,R6280-GBD001,Grants,06/12/2019,794.93 
http://statistics.data.gov.uk/id/local-authority-district/23UB,Cheltenham Borough Council,Big Local Project,14074406,37,Cheltenham Saracens Sports Club,R6280-COM104,Grants,20/12/2019,"2,000.00 "
http://statistics.data.gov.uk/id/local-authority-district/23UB,Cheltenham Borough Council,Supervision and Management,14074465,642,Chris Arnold Tree Surgery,R2070-HRA110,Tree Work,20/12/2019,700.00 
http://statistics.data.gov.uk/id/local-authority-district/23UB,Cheltenham Borough Council,Housing Benefit Administration,14074270,C/RB189038,Civica UK Limited,R4539-HBA001,IT - Consultancy,13/12/2019,"6,500.00 "
http://statistics.data.gov.uk/id/local-authority-district/23UB,Cheltenham Borough Council,Housing Benefit Administration,14074589,C/RB189527,Civica UK Limited,R4531-HBA001,IT - Purchase of Software,30/12/2019,"3,692.89 "
http://statistics.data.gov.uk/id/local-authority-district/23UB,Cheltenham Borough Council,Oakley Resource Centre,14074337,14906,County Clean Limited,R2700-COM101,Contract Cleaning,20/12/2019,"1,183.52 "
http://statistics.data.gov.uk/id/local-authority-district/23UB,Cheltenham Borough Council,Cheltenham Depot,14074391,INV-0059,County Drain Services,R2043-ADB103,R & M of Build Drain Cleaning,20/12/2019,"4,650.00 "
http://statistics.data.gov.uk/id/local-authority-district/23UB,Cheltenham Borough Council,Household Waste,14074043,3024777,Craemer UK Limited,R4000-WST001,Equipment Purchase,06/12/2019,"10,500.00 "
http://statistics.data.gov.uk/id/local-authority-district/23UB,Cheltenham Borough Council,Car Parks - Off Street R&M,14074599,RAT/1155,Cushman & Wakefield Debenham Tie Leung Ltd,R2001-CPK101,R & M of Fix & Fit - General,30/12/2019,"24,981.25 "
http://statistics.data.gov.uk/id/local-authority-district/23UB,Cheltenham Borough Council,Parks & Gardens Operations,14074028,1089,D A Jones Landscapes,R2075-OPS001,Grounds Maintenance - Contract,06/12/2019,600.00 
http://statistics.data.gov.uk/id/local-authority-district/23UB,Cheltenham Borough Council,Parks & Gardens Operations,14074028,1089,D A Jones Landscapes,R2075-OPS001,Grounds Maintenance - Contract,06/12/2019,-650.00 
http://statistics.data.gov.uk/id/local-authority-district/23UB,Cheltenham Borough Council,Parks & Gardens Operations,14074028,1089,D A Jones Landscapes,R2075-OPS001,Grounds Maintenance - Contract,06/12/2019,650.00 
http://statistics.data.gov.uk/id/local-authority-district/23UB,Cheltenham Borough Council,Urban Design,14074390,1092,D A Jones Landscapes,R4010-URB101,Materials - Other Materials,13/12/2019,678.00 
http://statistics.data.gov.uk/id/local-authority-district/23UB,Cheltenham Borough Council,Urban Design,14074390,1092,D A Jones Landscapes,R4010-URB101,Materials - Other Materials,13/12/2019,740.00 
http://statistics.data.gov.uk/id/local-authority-district/23UB,Cheltenham Borough Council,Urban Design,14074390,1092,D A Jones Landscapes,R4010-URB101,Materials - Other Materials,13/12/2019,-740.00 
http://statistics.data.gov.uk/id/local-authority-district/23UB,Cheltenham Borough Council,Sports & Open Spaces Operations,14074269,1093,D A Jones Landscapes,R2071-OPS002,Open Spaces and Grassed Areas,13/12/2019,-800.00 
http://statistics.data.gov.uk/id/local-authority-district/23UB,Cheltenham Borough Council,Sports & Open Spaces Operations,14074269,1093,D A Jones Landscapes,R2071-OPS002,Open Spaces and Grassed Areas,13/12/2019,760.00 
http://statistics.data.gov.uk/id/local-authority-district/23UB,Cheltenham Borough Council,Sports & Open Spaces Operations,14074269,1093,D A Jones Landscapes,R2071-OPS002,Open Spaces and Grassed Areas,13/12/2019,800.00 
http://statistics.data.gov.uk/id/local-authority-district/23UB,Cheltenham Borough Council,Sports & Open Spaces Operations,14074582,1276,D A Jones Landscapes,R2071-OPS002,Open Spaces and Grassed Areas,30/12/2019,"2,311.00 "
http://statistics.data.gov.uk/id/local-authority-district/23UB,Cheltenham Borough Council,Sports & Open Spaces Operations,14074582,1276,D A Jones Landscapes,R2071-OPS002,Open Spaces and Grassed Areas,30/12/2019,"1,261.00 "
http://statistics.data.gov.uk/id/local-authority-district/23UB,Cheltenham Borough Council,Sports & Open Spaces Operations,14074582,1276,D A Jones Landscapes,R2071-OPS002,Open Spaces and Grassed Areas,30/12/2019,"-2,311.00 "
http://statistics.data.gov.uk/id/local-authority-district/23UB,Cheltenham Borough Council,Sports & Open Spaces Operations,14074582,1276,D A Jones Landscapes,R2071-OPS002,Open Spaces and Grassed Areas,30/12/2019,"1,050.00 "
http://statistics.data.gov.uk/id/local-authority-district/23UB,Cheltenham Borough Council,Parks & Gardens Operations,14074182,1224,D W Brookes (Resurfacing Limited),R2075-OPS001,Grounds Maintenance - Contract,13/12/2019,"1,600.00 "
http://statistics.data.gov.uk/id/local-authority-district/23UB,Cheltenham Borough Council,Parks & Gardens Operations,14074182,1224,D W Brookes (Resurfacing Limited),R2075-OPS001,Grounds Maintenance - Contract,13/12/2019,"1,600.00 "
http://statistics.data.gov.uk/id/local-authority-district/23UB,Cheltenham Borough Council,Parks & Gardens Operations,14074182,1224,D W Brookes (Resurfacing Limited),R2075-OPS001,Grounds Maintenance - Contract,13/12/2019,"-1,600.00 "
http://statistics.data.gov.uk/id/local-authority-district/23UB,Cheltenham Borough Council,Cyber Business Park,14074487,8000892974,Deloitte LLP,R4411-PLP105,Consultancy Fees,20/12/2019,"10,000.00 "
http://statistics.data.gov.uk/id/local-authority-district/23UB,Cheltenham Borough Council,Vehicles & recycling equipment,14073682,364228,Dennis Eagle Limited,C2000-CAP301,Acquisition of Vehicles,30/12/2019,"63,892.06 "
http://statistics.data.gov.uk/id/local-authority-district/23UB,Cheltenham Borough Council,Income and Expenditure on Investment Properties and Changes in Their Fair Value,14074224,311757,Devonshires Solicitors LLP,R4400-FIE040,Services - Professional Fees,13/12/2019,"1,099.00 "
http://statistics.data.gov.uk/id/local-authority-district/23UB,Cheltenham Borough Council,Income and Expenditure on Investment Properties and Changes in Their Fair Value,14074377,313366,Devonshires Solicitors LLP,R4400-FIE040,Services - Professional Fees,20/12/2019,"7,898.30 "
http://statistics.data.gov.uk/id/local-authority-district/23UB,Cheltenham Borough Council,Licensing,14074073,B27671,Disclosure & Barring Service,R1601-REG002,CRB Police Checks,13/12/2019,760.00 
http://statistics.data.gov.uk/id/local-authority-district/23UB,Cheltenham Borough Council,Car Parks - Off Street R&M,14074405,164562,Dry Risers Ltd,R2008-CPK101,R & M of Build - Reactive Repairs,20/12/2019,"5,107.50 "
http://statistics.data.gov.uk/id/local-authority-district/23UB,Cheltenham Borough Council,Cheltenham Municipal Offices,14074466,82498682,Dx Network Services Limited,R4308-ADB101,Stationery,20/12/2019,"1,151.70 "
http://statistics.data.gov.uk/id/local-authority-district/23UB,Cheltenham Borough Council,Development costs - Monkscroft,14074315,45287,E.G. Carter & Co. Limited,C1107-CAH061,Building Works,13/12/2019,"145,105.34 "
http://statistics.data.gov.uk/id/local-authority-district/23UB,Cheltenham Borough Council,Development costs - Monkscroft,14074315,45287,E.G. Carter & Co. Limited,C1107-CAH061,Building Works,13/12/2019,"145,105.34 "
http://statistics.data.gov.uk/id/local-authority-district/23UB,Cheltenham Borough Council,Development costs - Monkscroft,14074315,45287,E.G. Carter & Co. Limited,C1107-CAH061,Building Works,13/12/2019,"-145,105.34 "
http://statistics.data.gov.uk/id/local-authority-district/23UB,Cheltenham Borough Council,Asbestos Management,14074521,10059,Environmental Management Solutions Limited,C1107-CAH012,Building Works,20/12/2019,"14,220.00 "
http://statistics.data.gov.uk/id/local-authority-district/23UB,Cheltenham Borough Council,Household Waste,14074586,6855921,ESE World Limited,R4000-WST001,Equipment Purchase,30/12/2019,"12,420.00 "
http://statistics.data.gov.uk/id/local-authority-district/23UB,Cheltenham Borough Council,Recreation Centre Repairs & Maintenance,14074559,1454/404,ESG Pool Ventilation Limited,R2080-REC111,Mechanical Services,30/12/2019,605.00 
http://statistics.data.gov.uk/id/local-authority-district/23UB,Cheltenham Borough Council,"Cemetery, Crematorium and Churchyards",14073996,19104951,Facultatieve Technologies Limited,R2007-CCM001,R & M of Plant Contracts,13/12/2019,"10,753.30 "
http://statistics.data.gov.uk/id/local-authority-district/23UB,Cheltenham Borough Council,Corporate Policy Making,14074205,INV-0401,Gatherwell Ltd,R4531-COR003,IT - Purchase of Software,20/12/2019,"5,000.00 "
http://statistics.data.gov.uk/id/local-authority-district/23UB,Cheltenham Borough Council,Cyber Business Park,14074188,364,GFirst LEP CIC,R4400-PLP105,Services - Professional Fees,06/12/2019,"4,954.61 "
http://statistics.data.gov.uk/id/local-authority-district/23UB,Cheltenham Borough Council,Waste & Recycling - Marketing & Management,14074587,SI789530,Glasdon UK Limited,R4000-RYC007,Equipment Purchase,30/12/2019,"2,076.43 "
http://statistics.data.gov.uk/id/local-authority-district/23UB,Cheltenham Borough Council,Homelessness,14074396,13292187,Gloucester City Council,R9016-HOM001,Homelessness grant,13/12/2019,"30,000.00 "
http://statistics.data.gov.uk/id/local-authority-district/23UB,Cheltenham Borough Council,Parliamentary Elections,14074519,149737,Gloucester Event Hire,R4401-ELE004,Services - Fees and Charges,30/12/2019,610.00 
http://statistics.data.gov.uk/id/local-authority-district/23UB,Cheltenham Borough Council,World War 1 Commemoration Projects,14067710,6779,Gloucestershire Everyman Theatre Co Limited,R6280-CUL003,Grants,17/12/2019,"1,535.04 "
http://statistics.data.gov.uk/id/local-authority-district/23UB,Cheltenham Borough Council,"Cemetery, Crematorium and Churchyards",14074244,10024733,Goldingham Contracts Limited,R2702-CCM001,Pest Control,13/12/2019,625.00 
http://statistics.data.gov.uk/id/local-authority-district/23UB,Cheltenham Borough Council,Supervision and Management,14074255,31812,Gooch Group Limited,R5011-HRA110,Minor Neighbourhood Works,13/12/2019,"1,245.00 "
http://statistics.data.gov.uk/id/local-authority-district/23UB,Cheltenham Borough Council,Supervision and Management,14074254,33112,Gooch Group Limited,R5011-HRA110,Minor Neighbourhood Works,13/12/2019,992.00 
http://statistics.data.gov.uk/id/local-authority-district/23UB,Cheltenham Borough Council,Supervision and Management,14074274,33124,Gooch Group Limited,R5014-HRA110,Minor Neighbourhood Works - St Peter's & The Moors,13/12/2019,700.00 
http://statistics.data.gov.uk/id/local-authority-district/23UB,Cheltenham Borough Council,Corporate Management,14074530,9010998,Grant Thornton UK LLP,R4430-COR001,Audit Fees,20/12/2019,"9,510.75 "
http://statistics.data.gov.uk/id/local-authority-district/23UB,Cheltenham Borough Council,Corporate Management,14074497,9012772,Grant Thornton UK LLP,R4430-COR001,Audit Fees,20/12/2019,"22,405.00 "
http://statistics.data.gov.uk/id/local-authority-district/23UB,Cheltenham Borough Council,Sports & Open Spaces Operations,14074162,93326,"Grimshaw Kinnear Limited t/a Grimshaw Group, Grimshaw Sports & Nostalga Building Supplies",R4003-OPS002,Tools & Equipment - R & M,13/12/2019,"3,018.00 "
http://statistics.data.gov.uk/id/local-authority-district/23UB,Cheltenham Borough Council,Cyber Business Park,14074096,7034539,GVA Grimley Limited T/A Avison Young,R4400-PLP105,Services - Professional Fees,06/12/2019,"20,000.00 "
http://statistics.data.gov.uk/id/local-authority-district/23UB,Cheltenham Borough Council,Cyber Business Park,14073454,7034837,GVA Grimley Limited T/A Avison Young,R4400-PLP105,Services - Professional Fees,06/12/2019,"77,917.50 "
http://statistics.data.gov.uk/id/local-authority-district/23UB,Cheltenham Borough Council,Income and Expenditure on Investment Properties and Changes in Their Fair Value,14073794,9682,H & W Facilities Management Limited,R2700-FIE040,Contract Cleaning,06/12/2019,548.17 
http://statistics.data.gov.uk/id/local-authority-district/23UB,Cheltenham Borough Council,Homelessness,14074024,5 330 HS,H M T Lettings and Management,R6280-HOM001,Grants,06/12/2019,576.00 
http://statistics.data.gov.uk/id/local-authority-district/23UB,Cheltenham Borough Council,Sports & Open Spaces Operations,14074042,68651,HAGS-SMP Limited,R4003-OPS002,Tools & Equipment - R & M,13/12/2019,"1,663.20 "
http://statistics.data.gov.uk/id/local-authority-district/23UB,Cheltenham Borough Council,Flood Risk Management,14074332,204628CH013,Halcrow Group Limited,R5001-FRM101,TPP - Major External Contractors,13/12/2019,"4,344.43 "
http://statistics.data.gov.uk/id/local-authority-district/23UB,Cheltenham Borough Council,Allotments,14074536,150880,Hanman Split Limited,R4010-OPS004,Materials - Other Materials,20/12/2019,788.58 
http://statistics.data.gov.uk/id/local-authority-district/23UB,Cheltenham Borough Council,Pittville Pump Room Repairs & Maintenance,14074560,24551,Hayles and Howe Limited,R2004-CUL113,R & M of Build Programmed,30/12/2019,"9,594.50 "
http://statistics.data.gov.uk/id/local-authority-district/23UB,Cheltenham Borough Council,General Fund Balance Sheet,14074604,POLL CARD DELIVERY - NOV 19,HMRC - CBC Election Staff,B6110-BAL100,Short term Creditors - PAYE and NI,30/12/2019,"3,087.00 "
http://statistics.data.gov.uk/id/local-authority-district/23UB,Cheltenham Borough Council,General Fund Balance Sheet,14074208,CISDEDUCT0611-051219,HMRC (CBC - CIS),B6220-BAL100,CIS Deductions Control (reallocated),13/12/2019,"22,475.91 "
http://statistics.data.gov.uk/id/local-authority-district/23UB,Cheltenham Borough Council,Training & Development,14074018,214PS00149425APPRENTICELVY08,HMRC (CBC - PAYE & NIC),R1425-SUP020,Apprentice Levy,06/12/2019,"1,756.00 "
http://statistics.data.gov.uk/id/local-authority-district/23UB,Cheltenham Borough Council,General Fund Balance Sheet,14074017,120PP01583205PAYENOV 2019,HMRC (HOLST MUSEUM PAYE),B6110-BAL100,Short term Creditors - PAYE and NI,06/12/2019,511.23 
http://statistics.data.gov.uk/id/local-authority-district/23UB,Cheltenham Borough Council,Repairs and Maintenance,14074314,150403AC5,Ian Williams Limited,R2060-HRA100,R & M of Build Cyclical Painting Communal Areas,20/12/2019,"23,473.03 "
http://statistics.data.gov.uk/id/local-authority-district/23UB,Cheltenham Borough Council,Repairs and Maintenance,14074314,150403AC5,Ian Williams Limited,R2060-HRA100,R & M of Build Cyclical Painting Communal Areas,20/12/2019,"23,473.03 "
http://statistics.data.gov.uk/id/local-authority-district/23UB,Cheltenham Borough Council,Repairs and Maintenance,14074314,150403AC5,Ian Williams Limited,R2060-HRA100,R & M of Build Cyclical Painting Communal Areas,20/12/2019,"-23,473.03 "
http://statistics.data.gov.uk/id/local-authority-district/23UB,Cheltenham Borough Council,Registration of Electors,14073994,7027482,Idox Software Limited,R4520-ELE001,Postages - stamps,06/12/2019,"1,493.85 "
http://statistics.data.gov.uk/id/local-authority-district/23UB,Cheltenham Borough Council,Development costs - Pennine Road,14074013,001 IN024018,J Harper & Sons (Leominster) Limited,C1107-CAH070,Building Works,20/12/2019,"7,314.00 "
http://statistics.data.gov.uk/id/local-authority-district/23UB,Cheltenham Borough Council,Parks & Gardens Operations,14073761,2141,REDACTED,R4000-OPS001,Equipment Purchase,06/12/2019,"5,500.00 "
http://statistics.data.gov.uk/id/local-authority-district/23UB,Cheltenham Borough Council,Parks & Gardens Operations,14073761,2141,REDACTED,R4000-OPS001,Equipment Purchase,06/12/2019,"-5,500.00 "
http://statistics.data.gov.uk/id/local-authority-district/23UB,Cheltenham Borough Council,Parks & Gardens Operations,14073761,2141,REDACTED,R4000-OPS001,Equipment Purchase,06/12/2019,"1,700.00 "
http://statistics.data.gov.uk/id/local-authority-district/23UB,Cheltenham Borough Council,Parks & Gardens Operations,14073761,2141,REDACTED,R4000-OPS001,Equipment Purchase,06/12/2019,"3,800.00 "
http://statistics.data.gov.uk/id/local-authority-district/23UB,Cheltenham Borough Council,Sports & Open Spaces Operations,14074591,2145,REDACTED,R2075-OPS002,Grounds Maintenance - Contract,30/12/2019,"1,975.00 "
http://statistics.data.gov.uk/id/local-authority-district/23UB,Cheltenham Borough Council,Sports & Open Spaces Operations,14074591,2145,REDACTED,R2075-OPS002,Grounds Maintenance - Contract,30/12/2019,"3,700.00 "
http://statistics.data.gov.uk/id/local-authority-district/23UB,Cheltenham Borough Council,Sports & Open Spaces Operations,14074591,2145,REDACTED,R2075-OPS002,Grounds Maintenance - Contract,30/12/2019,"1,725.00 "
http://statistics.data.gov.uk/id/local-authority-district/23UB,Cheltenham Borough Council,Sports & Open Spaces Operations,14074591,2145,REDACTED,R2075-OPS002,Grounds Maintenance - Contract,30/12/2019,"-3,700.00 "
http://statistics.data.gov.uk/id/local-authority-district/23UB,Cheltenham Borough Council,Sports & Open Spaces Operations,14074219,22144,REDACTED,R2075-OPS002,Grounds Maintenance - Contract,13/12/2019,525.00 
http://statistics.data.gov.uk/id/local-authority-district/23UB,Cheltenham Borough Council,Sports & Open Spaces Operations,14074219,22144,REDACTED,R2075-OPS002,Grounds Maintenance - Contract,13/12/2019,950.00 
http://statistics.data.gov.uk/id/local-authority-district/23UB,Cheltenham Borough Council,Sports & Open Spaces Operations,14074219,22144,REDACTED,R2075-OPS002,Grounds Maintenance - Contract,13/12/2019,-950.00 
http://statistics.data.gov.uk/id/local-authority-district/23UB,Cheltenham Borough Council,Corporate Management,14074313,J511352,JCA Global Limited,R1652-COR001,Training Fees (External),13/12/2019,"3,000.00 "
http://statistics.data.gov.uk/id/local-authority-district/23UB,Cheltenham Borough Council,Supervision and Management,14074229,RND301119/comb-19,John Gillman & Sons (Electrical) Limited (Gillmans Appliance),R4002-HRA110,Tools & Equipment - Lease/Rental,13/12/2019,"1,950.78 "
http://statistics.data.gov.uk/id/local-authority-district/23UB,Cheltenham Borough Council,Car Parks - Off Street Operations,14074378,3241,John Ryde Commercial,R2200-CPK001,Rent,30/12/2019,"9,141.25 "
http://statistics.data.gov.uk/id/local-authority-district/23UB,Cheltenham Borough Council,External Improvements,14074531,6783,Joyner P A Ltd,C1107-CAH003,Building Works,20/12/2019,"85,764.97 "
http://statistics.data.gov.uk/id/local-authority-district/23UB,Cheltenham Borough Council,Training & Development,14074398,INV-016438,Learning Pool,R1652-SUP020,Training Fees (External),20/12/2019,"12,200.00 "
http://statistics.data.gov.uk/id/local-authority-district/23UB,Cheltenham Borough Council,,0,,,-,,,0.00 
http://statistics.data.gov.uk/id/local-authority-district/23UB,Cheltenham Borough Council,Community Safety (Crime Reduction),14074218,129695,Leisuresec PLC,R4409-CCR001,Partnership Staff Fees,20/12/2019,"1,554.00 "
http://statistics.data.gov.uk/id/local-authority-district/23UB,Cheltenham Borough Council,New Heating Installations,14074339,1204135,Liberty Gas Group,C1107-CAH009,Building Works,13/12/2019,"62,020.60 "
http://statistics.data.gov.uk/id/local-authority-district/23UB,Cheltenham Borough Council,New Heating Installations,14074220,1204395,Liberty Gas Group,C1107-CAH009,Building Works,13/12/2019,"3,600.91 "
http://statistics.data.gov.uk/id/local-authority-district/23UB,Cheltenham Borough Council,Repairs and Maintenance,14074221,1204396,Liberty Gas Group,R2040-HRA100,R & M of Build Central Heating,13/12/2019,"26,748.60 "
http://statistics.data.gov.uk/id/local-authority-district/23UB,Cheltenham Borough Council,Community Welfare Grants,14073844,7.121E+11,Lil-Lets UK Limited,R4024-GBD001,Stock Purchases,06/12/2019,809.60 
http://statistics.data.gov.uk/id/local-authority-district/23UB,Cheltenham Borough Council,ICT,14074310,16002480,LinchPin Networks Limited,R4548-SUP005,IT - Cabling and Network,13/12/2019,"1,599.50 "
http://statistics.data.gov.uk/id/local-authority-district/23UB,Cheltenham Borough Council,Parks & Gardens Operations,14074333,D18145/03,Linda Thomas,R4401-OPS001,Services - Fees and Charges,20/12/2019,"1,047.12 "
http://statistics.data.gov.uk/id/local-authority-district/23UB,Cheltenham Borough Council,Parks & Gardens Operations,14074306,2190990,Lubbe & Sons (Bulbs) Limited,R4003-OPS001,Tools & Equipment - R & M,13/12/2019,"1,320.00 "
http://statistics.data.gov.uk/id/local-authority-district/23UB,Cheltenham Borough Council,Parks & Gardens Operations,14074305,2190991,Lubbe & Sons (Bulbs) Limited,R4003-OPS001,Tools & Equipment - R & M,13/12/2019,"1,176.00 "
http://statistics.data.gov.uk/id/local-authority-district/23UB,Cheltenham Borough Council,Disabled Facility Grants,14074022,18/00059/DMTHA FINAL,MAAS Design Services,C5000-CAP221,Grants,06/12/2019,"2,155.60 "
http://statistics.data.gov.uk/id/local-authority-district/23UB,Cheltenham Borough Council,Cultural - Service Management and Support Services,14074331,644,Max Associates (Holdings) Limited,R4400-CSM001,Services - Professional Fees,20/12/2019,"8,385.00 "
http://statistics.data.gov.uk/id/local-authority-district/23UB,Cheltenham Borough Council,Car Parks - Off Street Operations,14073976,166476,Metric Group Limited,R4531-CPK001,IT - Purchase of Software,13/12/2019,"1,288.55 "
http://statistics.data.gov.uk/id/local-authority-district/23UB,Cheltenham Borough Council,Repairs and Maintenance,14073772,42509,Morgan Lambert Limited,R2004-HRA100,R & M of Build Programmed,20/12/2019,"1,500.00 "
http://statistics.data.gov.uk/id/local-authority-district/23UB,Cheltenham Borough Council,Repairs and Maintenance,14074520,42970,Morgan Lambert Limited,R2004-HRA100,R & M of Build Programmed,20/12/2019,750.00 
http://statistics.data.gov.uk/id/local-authority-district/23UB,Cheltenham Borough Council,Repairs and Maintenance,14074308,43339,Morgan Lambert Limited,R2040-HRA100,R & M of Build Central Heating,13/12/2019,"1,496.00 "
http://statistics.data.gov.uk/id/local-authority-district/23UB,Cheltenham Borough Council,Repairs and Maintenance,14074309,43458,Morgan Lambert Limited,R2004-HRA100,R & M of Build Programmed,20/12/2019,"1,250.00 "
http://statistics.data.gov.uk/id/local-authority-district/23UB,Cheltenham Borough Council,"Cemetery, Crematorium and Churchyards",14074327,301119,REDACTED,R4401-CCM001,Services - Fees and Charges,13/12/2019,780.60 
http://statistics.data.gov.uk/id/local-authority-district/23UB,Cheltenham Borough Council,Sports & Open Spaces Operations,14074206,11219,Mrs A North (Farmer/Grazier),R2071-OPS002,Open Spaces and Grassed Areas,13/12/2019,"1,750.00 "
http://statistics.data.gov.uk/id/local-authority-district/23UB,Cheltenham Borough Council,Window & Door Renewals,14073926,19100417,Nationwide Windows Limited,C1107-CAH017,Building Works,06/12/2019,"190,705.59 "
http://statistics.data.gov.uk/id/local-authority-district/23UB,Cheltenham Borough Council,Window & Door Renewals,14073927,19100418,Nationwide Windows Limited,C1107-CAH017,Building Works,06/12/2019,"8,680.45 "
http://statistics.data.gov.uk/id/local-authority-district/23UB,Cheltenham Borough Council,Trees,14074033,62,Nature First Limited,R2070-PLP006,Tree Work,13/12/2019,"6,925.00 "
http://statistics.data.gov.uk/id/local-authority-district/23UB,Cheltenham Borough Council,Car Parks - Off Street Operations,14074203,IN135561,Network Merchants Limited,R4428-CPK001,Services - credit card charges,13/12/2019,948.72 
http://statistics.data.gov.uk/id/local-authority-district/23UB,Cheltenham Borough Council,"Cemetery, Crematorium and Churchyards",14074276,53206,Oconnor Construction Company Ltd,R3201-CCM001,Hire of Plant,13/12/2019,967.00 
http://statistics.data.gov.uk/id/local-authority-district/23UB,Cheltenham Borough Council,Cyber Business Park,14074214,20080267,Omnigenix,R4411-PLP105,Consultancy Fees,13/12/2019,"3,090.00 "
http://statistics.data.gov.uk/id/local-authority-district/23UB,Cheltenham Borough Council,Recreation Centre Repairs & Maintenance,14074354,67094,P & R Heating Limited,R2083-REC111,R&M of Build - Routine,13/12/2019,618.84 
http://statistics.data.gov.uk/id/local-authority-district/23UB,Cheltenham Borough Council,Car Parks - Off Street Operations,14074491,67150,P & R Heating Limited,R2008-CPK001,R & M of Build - Reactive Repairs,30/12/2019,"1,484.00 "
http://statistics.data.gov.uk/id/local-authority-district/23UB,Cheltenham Borough Council,Development costs - Monkscroft,14073974,3196003,Peter Evans Partnership Ltd,C1105-CAH061,Design Services,06/12/2019,"2,000.00 "
http://statistics.data.gov.uk/id/local-authority-district/23UB,Cheltenham Borough Council,Enterprise Way Phase 2,14073475,PC4678,Pick Everard,C1110-CAP506,Employer's Agent,30/12/2019,"1,440.00 "
http://statistics.data.gov.uk/id/local-authority-district/23UB,Cheltenham Borough Council,Development Control - Applications,14074262,734,PJS Development Solutions Limited,R4400-DEV001,Services - Professional Fees,30/12/2019,"5,198.10 "
http://statistics.data.gov.uk/id/local-authority-district/23UB,Cheltenham Borough Council,Human Resources,14074157,85001378,Publica Group (Support) Limited,R1700-SUP003,Staff Advertising Costs,13/12/2019,"1,319.76 "
http://statistics.data.gov.uk/id/local-authority-district/23UB,Cheltenham Borough Council,Development Control - Applications,14074157,85001378,Publica Group (Support) Limited,R1700-DEV001,Staff Advertising Costs,13/12/2019,750.00 
http://statistics.data.gov.uk/id/local-authority-district/23UB,Cheltenham Borough Council,Publica Business Support Contract,14074389,85001977,Publica Group (Support) Limited,R5500-SUP106,TPP - Publica Contract,20/12/2019,"121,687.74 "
http://statistics.data.gov.uk/id/local-authority-district/23UB,Cheltenham Borough Council,Income and Expenditure on Investment Properties and Changes in Their Fair Value,14074135,28678,R F Gardiner Limited T/as Gardiners,R2008-FIE040,R & M of Build - Reactive Repairs,06/12/2019,"2,779.68 "
http://statistics.data.gov.uk/id/local-authority-district/23UB,Cheltenham Borough Council,Car Parks - Off Street R&M,14074133,28683,R F Gardiner Limited T/as Gardiners,R2008-CPK101,R & M of Build - Reactive Repairs,06/12/2019,692.48 
http://statistics.data.gov.uk/id/local-authority-district/23UB,Cheltenham Borough Council,Recreation Centre Repairs & Maintenance,14074129,28684,R F Gardiner Limited T/as Gardiners,R2047-REC111,R & M of Build Door Entry Keys,06/12/2019,"1,696.89 "
http://statistics.data.gov.uk/id/local-authority-district/23UB,Cheltenham Borough Council,Cheltenham Depot,14074121,28711,R F Gardiner Limited T/as Gardiners,R2004-ADB103,R & M of Build Programmed,06/12/2019,663.20 
http://statistics.data.gov.uk/id/local-authority-district/23UB,Cheltenham Borough Council,Crematorium Scheme: New Build,14074541,28884,R F Gardiner Limited T/as Gardiners,C1100-CAP601,Construction,30/12/2019,"2,500.32 "
http://statistics.data.gov.uk/id/local-authority-district/23UB,Cheltenham Borough Council,Cyber Business Park,14074215,1659,RAB Retail Ltd,R4411-PLP105,Consultancy Fees,13/12/2019,"2,500.00 "
http://statistics.data.gov.uk/id/local-authority-district/23UB,Cheltenham Borough Council,Tourist/Visitor Information Centre,14074075,5049036,Reach Publishing Services Ltd,R4014-TOU002,Marketing,20/12/2019,"1,800.00 "
http://statistics.data.gov.uk/id/local-authority-district/23UB,Cheltenham Borough Council,Development Control - Applications,14074334,5061715,Reach Publishing Services Ltd,R4317-DEV001,Non Staff Advertising,30/12/2019,504.40 
http://statistics.data.gov.uk/id/local-authority-district/23UB,Cheltenham Borough Council,Town Centre Enforcement,14074319,7108,Reveal Media Limited,R4000-REG025,Equipment Purchase,20/12/2019,"1,657.00 "
http://statistics.data.gov.uk/id/local-authority-district/23UB,Cheltenham Borough Council,Parks & Gardens Operations,14074546,SINV00027107,RIBA Enterprises Limited,R4701-OPS001,Subscriptions,30/12/2019,625.00 
http://statistics.data.gov.uk/id/local-authority-district/23UB,Cheltenham Borough Council,Printing Services,14074290,101436764,Ricoh UK Limited,R4300-SUP022,Printing - Services,13/12/2019,693.87 
http://statistics.data.gov.uk/id/local-authority-district/23UB,Cheltenham Borough Council,Printing Services,14074291,101437702,Ricoh UK Limited,R4300-SUP022,Printing - Services,13/12/2019,763.11 
http://statistics.data.gov.uk/id/local-authority-district/23UB,Cheltenham Borough Council,Printing Services,14074295,101477813,Ricoh UK Limited,R4300-SUP022,Printing - Services,30/12/2019,"9,252.77 "
http://statistics.data.gov.uk/id/local-authority-district/23UB,Cheltenham Borough Council,Printing Services,14074293,101495781,Ricoh UK Limited,R4300-SUP022,Printing - Services,13/12/2019,693.87 
http://statistics.data.gov.uk/id/local-authority-district/23UB,Cheltenham Borough Council,Printing Services,14074289,101498577,Ricoh UK Limited,R4300-SUP022,Printing - Services,13/12/2019,763.11 
http://statistics.data.gov.uk/id/local-authority-district/23UB,Cheltenham Borough Council,Property Services,14074095,02657799FTI,RICS (Royal Institution of Chartered Surveyors) (Subscriptions),R4701-SUP025,Subscriptions,06/12/2019,539.00 
http://statistics.data.gov.uk/id/local-authority-district/23UB,Cheltenham Borough Council,Individual Electoral Registration,14074063,9059929297,Royal Mail,R4521-ELE010,Postages - franking machine,30/12/2019,727.08 
http://statistics.data.gov.uk/id/local-authority-district/23UB,Cheltenham Borough Council,Parliamentary Elections,14074379,9060022349,Royal Mail,R4520-ELE004,Postages - stamps,20/12/2019,"1,314.20 "
http://statistics.data.gov.uk/id/local-authority-district/23UB,Cheltenham Borough Council,Development Control - Applications,14074484,19-373-Inv001,Ryder Landscape Consultants Limited,R4400-DEV001,Services - Professional Fees,30/12/2019,673.20 
http://statistics.data.gov.uk/id/local-authority-district/23UB,Cheltenham Borough Council,Sandford Lido car park,14074252,SANDFORD LIDO NOV 19,Sandford Parks Lido (Trading) Limited,R5003-CPK103,TPP - Agency Fees,13/12/2019,"20,023.50 "
http://statistics.data.gov.uk/id/local-authority-district/23UB,Cheltenham Borough Council,Sandford Lido car park,14074252,SANDFORD LIDO NOV 19,Sandford Parks Lido (Trading) Limited,R5003-CPK103,TPP - Agency Fees,13/12/2019,"-1,683.33 "
http://statistics.data.gov.uk/id/local-authority-district/23UB,Cheltenham Borough Council,Repairs and Maintenance,14074067,1795,SAS EPC,R2018-HRA100,R & M of Build Voids Energy Performance Certificates,13/12/2019,725.00 
http://statistics.data.gov.uk/id/local-authority-district/23UB,Cheltenham Borough Council,Car Park Income Collection,14074463,779389,Security Plus+ Limited,R4435-CPK002,Cash Collection Contract,20/12/2019,615.85 
http://statistics.data.gov.uk/id/local-authority-district/23UB,Cheltenham Borough Council,Development Task Force,14074045,9662,SEP Limited,R4400-PLP102,Services - Professional Fees,06/12/2019,"1,493.00 "
http://statistics.data.gov.uk/id/local-authority-district/23UB,Cheltenham Borough Council,Parks & Gardens Operations,14073992,24298,Shelley Signs Limited,R4010-OPS001,Materials - Other Materials,06/12/2019,800.00 
http://statistics.data.gov.uk/id/local-authority-district/23UB,Cheltenham Borough Council,Internal Improvements - Communal,14074386,9093,Shield Electrical Services Ltd,C1107-CAH035,Building Works,13/12/2019,"8,829.14 "
http://statistics.data.gov.uk/id/local-authority-district/23UB,Cheltenham Borough Council,Internal Improvements - Communal,14074386,9093,Shield Electrical Services Ltd,C1107-CAH035,Building Works,13/12/2019,"30,000.00 "
http://statistics.data.gov.uk/id/local-authority-district/23UB,Cheltenham Borough Council,Internal Improvements - Communal,14074386,9093,Shield Electrical Services Ltd,C1107-CAH035,Building Works,13/12/2019,"38,829.14 "
http://statistics.data.gov.uk/id/local-authority-district/23UB,Cheltenham Borough Council,Internal Improvements - Communal,14074386,9093,Shield Electrical Services Ltd,C1107-CAH035,Building Works,13/12/2019,"-38,829.14 "
http://statistics.data.gov.uk/id/local-authority-district/23UB,Cheltenham Borough Council,Tourist/Visitor Information Centre,14074190,80617,Signcraft Limited,R4400-TOU002,Services - Professional Fees,13/12/2019,"2,671.50 "
http://statistics.data.gov.uk/id/local-authority-district/23UB,Cheltenham Borough Council,Car Parks - Off Street Operations,14074277,80628,Signcraft Limited,R2072-CPK001,Signs and Notices,13/12/2019,"2,937.02 "
http://statistics.data.gov.uk/id/local-authority-district/23UB,Cheltenham Borough Council,Urban Design,14074485,45727,Signway Supplies Limited,R4010-URB101,Materials - Other Materials,30/12/2019,"1,990.50 "
http://statistics.data.gov.uk/id/local-authority-district/23UB,Cheltenham Borough Council,Recycling Centres,14074394,SMI2012330,Sims Group UK Limited,R4401-RYC004,Services - Fees and Charges,30/12/2019,567.00 
http://statistics.data.gov.uk/id/local-authority-district/23UB,Cheltenham Borough Council,Recycling Centres,14074393,SMI2012331,Sims Group UK Limited,R4401-RYC004,Services - Fees and Charges,30/12/2019,567.00 
http://statistics.data.gov.uk/id/local-authority-district/23UB,Cheltenham Borough Council,External Improvements,14074090,44470,Snape Contracting Services Limited,C1107-CAH003,Building Works,20/12/2019,883.46 
http://statistics.data.gov.uk/id/local-authority-district/23UB,Cheltenham Borough Council,Income and Expenditure on Investment Properties and Changes in Their Fair Value,14074089,44574,Snape Contracting Services Limited,R2014-FIE040,R & M of Build Windows,13/12/2019,"1,032.00 "
http://statistics.data.gov.uk/id/local-authority-district/23UB,Cheltenham Borough Council,Internal Audit,14074470,803,South West Audit Partnership Limited (SWAP),R4400-SUP010,Services - Professional Fees,20/12/2019,"26,304.25 "
http://statistics.data.gov.uk/id/local-authority-district/23UB,Cheltenham Borough Council,Bulking Facility,14074318,35554,South West Wood Products Limited,R2703-RYC008,Waste Management,13/12/2019,"5,784.00 "
http://statistics.data.gov.uk/id/local-authority-district/23UB,Cheltenham Borough Council,Recycling Collection Schemes,14074275,47168,Straight Manufacturing Ltd,R4000-RYC006,Equipment Purchase,13/12/2019,"14,322.00 "
http://statistics.data.gov.uk/id/local-authority-district/23UB,Cheltenham Borough Council,Recycling Collection Schemes,14074264,47174,Straight Manufacturing Ltd,R4000-RYC006,Equipment Purchase,13/12/2019,"7,178.00 "
http://statistics.data.gov.uk/id/local-authority-district/23UB,Cheltenham Borough Council,Non Traditional Homes,14074404,25524,Sustainable Building Services UK Ltd,C1107-CAH036,Building Works,20/12/2019,"84,186.74 "
http://statistics.data.gov.uk/id/local-authority-district/23UB,Cheltenham Borough Council,Off Street Car Parking Infrastructure Investment,14074039,SWS101930,SW Surveys Ltd,C1005-CAP129,Surveyors Fees,06/12/2019,535.00 
http://statistics.data.gov.uk/id/local-authority-district/23UB,Cheltenham Borough Council,Off Street Car Parking Infrastructure Investment,14074037,SWS101951,SW Surveys Ltd,C1005-CAP129,Surveyors Fees,06/12/2019,535.00 
http://statistics.data.gov.uk/id/local-authority-district/23UB,Cheltenham Borough Council,Off Street Car Parking Infrastructure Investment,14074057,SWS101952,SW Surveys Ltd,C1005-CAP129,Surveyors Fees,06/12/2019,535.00 
http://statistics.data.gov.uk/id/local-authority-district/23UB,Cheltenham Borough Council,Off Street Car Parking Infrastructure Investment,14074036,SWS101953,SW Surveys Ltd,C1005-CAP129,Surveyors Fees,06/12/2019,535.00 
http://statistics.data.gov.uk/id/local-authority-district/23UB,Cheltenham Borough Council,Off Street Car Parking Infrastructure Investment,14074035,SWS101954,SW Surveys Ltd,C1005-CAP129,Surveyors Fees,06/12/2019,535.00 
http://statistics.data.gov.uk/id/local-authority-district/23UB,Cheltenham Borough Council,Off Street Car Parking Infrastructure Investment,14074038,SWS101955,SW Surveys Ltd,C1005-CAP129,Surveyors Fees,06/12/2019,535.00 
http://statistics.data.gov.uk/id/local-authority-district/23UB,Cheltenham Borough Council,Development Control - Applications,14074492,19003277,SYSTRA Limited,R4400-DEV001,Services - Professional Fees,20/12/2019,"2,750.00 "
http://statistics.data.gov.uk/id/local-authority-district/23UB,Cheltenham Borough Council,Disabled Facility Grants,14074575,19/00065/DMOOC FINAL,T P G Disable Aids Limited (TPG),C5000-CAP221,Grants,20/12/2019,"1,509.00 "
http://statistics.data.gov.uk/id/local-authority-district/23UB,Cheltenham Borough Council,Cyber Business Park,14074311,326147,Target Marketing Group Limited,R4425-PLP105,Professional Fees,13/12/2019,"1,200.00 "
http://statistics.data.gov.uk/id/local-authority-district/23UB,Cheltenham Borough Council,Legal,14073980,DEBT107421,Tewkesbury Borough Council,R4401-SUP004,Services - Fees and Charges,06/12/2019,"15,919.79 "
http://statistics.data.gov.uk/id/local-authority-district/23UB,Cheltenham Borough Council,Development Control - Applications,14074515,DEBT107447,Tewkesbury Borough Council,R4400-DEV001,Services - Professional Fees,20/12/2019,"16,000.00 "
http://statistics.data.gov.uk/id/local-authority-district/23UB,Cheltenham Borough Council,Cultural - Service Management and Support Services,14074232,70068521,The Cheltenham Trust,R5001-CSM001,TPP - Major External Contractors,13/12/2019,"11,182.00 "
http://statistics.data.gov.uk/id/local-authority-district/23UB,Cheltenham Borough Council,Cultural - Service Management and Support Services,14074517,70069019,The Cheltenham Trust,R5001-CSM001,TPP - Major External Contractors,20/12/2019,"67,606.75 "
http://statistics.data.gov.uk/id/local-authority-district/23UB,Cheltenham Borough Council,General Fund Balance Sheet,14074223,8.50028E+11,The Midcounties Co-operative,B6170-BAL100,Short Term Revenue Creditors (incl RIA) - Other entities and individuals,13/12/2019,"1,721.83 "
http://statistics.data.gov.uk/id/local-authority-district/23UB,Cheltenham Borough Council,Phase 3 Development,14074031,1504/01,The Stanley Partnership Limited,C1113-CAH039,Architect Fees,06/12/2019,"2,750.00 "
http://statistics.data.gov.uk/id/local-authority-district/23UB,Cheltenham Borough Council,Adaptations for the Disabled (CBC),14074020,18/00046/DMTLA INTERIM NO 1,The Surveying Practice - Client Account,C1107-CAH028,Building Works,06/12/2019,"24,000.00 "
http://statistics.data.gov.uk/id/local-authority-district/23UB,Cheltenham Borough Council,Adaptations for the Disabled (CBC),14074456,18/00110/DMTLA FINAL.,The Surveying Practice - Client Account,C1107-CAH028,Building Works,20/12/2019,"4,695.17 "
http://statistics.data.gov.uk/id/local-authority-district/23UB,Cheltenham Borough Council,Adaptations for the Disabled (CBC),14074573,19/00009/DMTLA INTERIM NO 1,The Surveying Practice - Client Account,C1107-CAH028,Building Works,20/12/2019,"13,902.08 "
http://statistics.data.gov.uk/id/local-authority-district/23UB,Cheltenham Borough Council,Adaptations for the Disabled (CBC),14074021,19/00035/DMTLA FINAL,The Surveying Practice - Client Account,C1107-CAH028,Building Works,06/12/2019,"11,530.94 "
http://statistics.data.gov.uk/id/local-authority-district/23UB,Cheltenham Borough Council,Adaptations for the Disabled (CBC),14074454,19/00041/DMTLA FINAL,The Surveying Practice - Client Account,C1107-CAH028,Building Works,20/12/2019,"18,136.01 "
http://statistics.data.gov.uk/id/local-authority-district/23UB,Cheltenham Borough Council,Disabled Facility Grants,14074397,19/00043/DDTHA FINAL,The Surveying Practice - Client Account,C5000-CAP221,Grants,20/12/2019,"10,468.88 "
http://statistics.data.gov.uk/id/local-authority-district/23UB,Cheltenham Borough Council,Disabled Facility Grants,14074574,19/00049/DMMOB FINAL,The Surveying Practice - Client Account,C5000-CAP221,Grants,20/12/2019,"16,562.23 "
http://statistics.data.gov.uk/id/local-authority-district/23UB,Cheltenham Borough Council,Disabled Facility Grants,14074023,19/00055/DMOOC,The Surveying Practice - Client Account,C1107-CAP221,Building Works,06/12/2019,"8,053.66 "
http://statistics.data.gov.uk/id/local-authority-district/23UB,Cheltenham Borough Council,Disabled Facility Grants,14074019,19/00057/DMOOC FINAL,The Surveying Practice - Client Account,C5000-CAP221,Grants,06/12/2019,"8,435.75 "
http://statistics.data.gov.uk/id/local-authority-district/23UB,Cheltenham Borough Council,Adaptations for the Disabled (CBC),14074455,19/00072/DMTLA FINAL,The Surveying Practice - Client Account,C1107-CAH028,Building Works,20/12/2019,"8,876.81 "
http://statistics.data.gov.uk/id/local-authority-district/23UB,Cheltenham Borough Council,Parks & Gardens Operations,14073990,62081,Townscape Products Limited,R4010-OPS001,Materials - Other Materials,06/12/2019,662.00 
http://statistics.data.gov.uk/id/local-authority-district/23UB,Cheltenham Borough Council,Treasury Management,14074066,TLB/LN/CHEL-*L/DEPOT/11/2019,Tradition UK Limited,R4447-COR006,Brokerage Fees,06/12/2019,"1,008.21 "
http://statistics.data.gov.uk/id/local-authority-district/23UB,Cheltenham Borough Council,Cyber Business Park,14074494,9931,Transport Planning Association Ltd,R4411-PLP105,Consultancy Fees,20/12/2019,"7,172.38 "
http://statistics.data.gov.uk/id/local-authority-district/23UB,Cheltenham Borough Council,Cyber Business Park,14074495,9932,Transport Planning Association Ltd,R4411-PLP105,Consultancy Fees,20/12/2019,"4,328.37 "
http://statistics.data.gov.uk/id/local-authority-district/23UB,Cheltenham Borough Council,"Cemetery, Crematorium and Churchyards",14074000,9717,Travail Employment Group,R1100-CCM001,Agency Staff,13/12/2019,"1,138.12 "
http://statistics.data.gov.uk/id/local-authority-district/23UB,Cheltenham Borough Council,"Cemetery, Crematorium and Churchyards",14074228,10013,Travail Employment Group,R1100-CCM001,Agency Staff,30/12/2019,"1,138.12 "
http://statistics.data.gov.uk/id/local-authority-district/23UB,Cheltenham Borough Council,"Cemetery, Crematorium and Churchyards",14074539,10697,Travail Employment Group,R1100-CCM001,Agency Staff,30/12/2019,525.40 
http://statistics.data.gov.uk/id/local-authority-district/23UB,Cheltenham Borough Council,Licensing,14074233,2875476,Trowers & Hamlins LLP,R4400-REG002,Services - Professional Fees,13/12/2019,"3,500.00 "
http://statistics.data.gov.uk/id/local-authority-district/23UB,Cheltenham Borough Council,Cyber Business Park,14075051,JKB.47856.6,Trowers & Hamlins LLP,R4411-PLP105,Consultancy Fees,11/12/2019,"2,991.30 "
http://statistics.data.gov.uk/id/local-authority-district/23UB,Cheltenham Borough Council,"Cemetery, Crematorium and Churchyards",14074534,600031321,Ubico Limited,R3203-CCM001,Hire of Other Vehicles,30/12/2019,719.10 
http://statistics.data.gov.uk/id/local-authority-district/23UB,Cheltenham Borough Council,Household Waste,14074509,60031241,Ubico Limited,R5001-WST001,TPP - Major External Contractors,20/12/2019,"743,448.50 "
http://statistics.data.gov.uk/id/local-authority-district/23UB,Cheltenham Borough Council,Car Parks - Off Street Operations,14074382,2634,Verrus (UK) Limited (Pay By Phone),R4401-CPK001,Services - Fees and Charges,20/12/2019,"5,143.43 "
http://statistics.data.gov.uk/id/local-authority-district/23UB,Cheltenham Borough Council,Environmental Health General,14074186,143299,VestGuard UK Limited,R4000-REG001,Equipment Purchase,13/12/2019,556.20 
http://statistics.data.gov.uk/id/local-authority-district/23UB,Cheltenham Borough Council,Licensing,14074330,21385,VIP-System Limited,R4000-REG002,Equipment Purchase,13/12/2019,"2,983.66 "
http://statistics.data.gov.uk/id/local-authority-district/23UB,Cheltenham Borough Council,Bulky Household Waste,14074472,17/18,Vision 21,R4401-WST004,Services - Fees and Charges,30/12/2019,"3,862.50 "
http://statistics.data.gov.uk/id/local-authority-district/23UB,Cheltenham Borough Council,Bulky Household Waste,14074471,19-Jun,Vision 21,R4401-WST004,Services - Fees and Charges,30/12/2019,"3,775.00 "
http://statistics.data.gov.uk/id/local-authority-district/23UB,Cheltenham Borough Council,"Cemetery, Crematorium and Churchyards",14074468,19-11-Cheltenh,Vivedia Limited,R4011-CCM001,Goods For Resale,20/12/2019,505.00 
http://statistics.data.gov.uk/id/local-authority-district/23UB,Cheltenham Borough Council,"Cemetery, Crematorium and Churchyards",14074469,INV-4902,Vivedia Limited,R2205-CCM001,Service Charges,20/12/2019,"8,520.00 "
http://statistics.data.gov.uk/id/local-authority-district/23UB,Cheltenham Borough Council,Cyber Business Park,14074012,41828,"Vivid Resourcing, a division of g2V Recruitment Group Limited",R4400-PLP105,Services - Professional Fees,06/12/2019,"2,885.00 "
http://statistics.data.gov.uk/id/local-authority-district/23UB,Cheltenham Borough Council,Cyber Business Park,14074248,42045,"Vivid Resourcing, a division of g2V Recruitment Group Limited",R4400-PLP105,Services - Professional Fees,13/12/2019,"2,885.00 "
http://statistics.data.gov.uk/id/local-authority-district/23UB,Cheltenham Borough Council,Cyber Business Park,14074407,42294,"Vivid Resourcing, a division of g2V Recruitment Group Limited",R4400-PLP105,Services - Professional Fees,20/12/2019,"2,885.00 "
http://statistics.data.gov.uk/id/local-authority-district/23UB,Cheltenham Borough Council,Income and Expenditure on Investment Properties and Changes in Their Fair Value,14074167,3756,Water Hygiene Centre,R2004-FIE040,R & M of Build Programmed,06/12/2019,840.00 
http://statistics.data.gov.uk/id/local-authority-district/23UB,Cheltenham Borough Council,Parliamentary Elections,14074514,33168,Wernick Event Hire Limited,R4401-ELE004,Services - Fees and Charges,30/12/2019,"6,125.00 "
http://statistics.data.gov.uk/id/local-authority-district/23UB,Cheltenham Borough Council,Development costs - Monkscroft,14074605,REF3550829,Western Power Distribution,C1107-CAH061,Building Works,30/12/2019,"1,280.59 "
http://statistics.data.gov.uk/id/local-authority-district/23UB,Cheltenham Borough Council,Development Control - Applications,14074402,11-001,Wilf Tomaney Urban Design & Planning,R4400-DEV001,Services - Professional Fees,20/12/2019,"4,336.67 "
http://statistics.data.gov.uk/id/local-authority-district/23UB,Cheltenham Borough Council,Cheltenham Trust Intercompany Account,14074005,90344096,Wiltshire Council,R4401-HLD170,Services - Fees and Charges,06/12/2019,812.90 
http://statistics.data.gov.uk/id/local-authority-district/23UB,Cheltenham Borough Council,Cheltenham Trust Intercompany Account,14074014,90344406,Wiltshire Council,R4401-HLD170,Services - Fees and Charges,06/12/2019,797.00 
http://statistics.data.gov.uk/id/local-authority-district/23UB,Cheltenham Borough Council,Cheltenham Business Improvement District (BID) Levy,14073966,BID INV6110049001,Blow (UK) Ltd t/a Toni & Guy C,R8914-HLD160,NNDR refunds,06/12/2019,567.79 
http://statistics.data.gov.uk/id/local-authority-district/23UB,Cheltenham Borough Council,Homelessness,14074385,REDACTED,C J Hole,R6280-HOM001,Grants,13/12/2019,720.00 
http://statistics.data.gov.uk/id/local-authority-district/23UB,Cheltenham Borough Council,Parliamentary Elections,14074607,2,J.A.K.K Security Ltd,R4401-ELE004,Services - Fees and Charges,30/12/2019,696.00 
http://statistics.data.gov.uk/id/local-authority-district/23UB,Cheltenham Borough Council,Homelessness,14074512,REDACTED,Kensington Lettings,R6280-HOM001,Grants,20/12/2019,834.24 
http://statistics.data.gov.uk/id/local-authority-district/23UB,Cheltenham Borough Council,Regulatory & Environmental Services Transformation,14074459,OUTPLACEMENT SUPPORT,Lee Hecht Harrison Penna Limited,R4980-SUP140,Miscellaneous Expenses,20/12/2019,"2,000.00 "
http://statistics.data.gov.uk/id/local-authority-district/23UB,Cheltenham Borough Council,Housing Standards,14074576,REFUND-38CS HMO,Nick Laing Ltd,R9600-HOS004,Licences - Hses in Mulitple Occupation,20/12/2019,630.00 
http://statistics.data.gov.uk/id/local-authority-district/23UB,Cheltenham Borough Council,Homelessness,14074304,REDACTED,R A Flatt Residential Lettings,R6280-HOM001,Grants,13/12/2019,636.46 
http://statistics.data.gov.uk/id/local-authority-district/23UB,Cheltenham Borough Council,Cheltenham Business Improvement District (BID) Levy,14073965,OVERPAYMENT OF BID INVOICES,Stonegate Pub Co,R8914-HLD160,NNDR refunds,06/12/2019,825.00 
Bank Transactions,,,,,,,,,
http://statistics.data.gov.uk/id/local-authority-district/23UB,Cheltenham Borough Council,Cheltenham Municipal Offices,10031379,Bank Transactions,WEST MERCIA ENERGY - ELECTRICITY - MUNICIPAL OFFICES - 01/10/2019-31/10/2019,R2100-ADB101,Electricity,18/12/2019,"2,901.15 "
http://statistics.data.gov.uk/id/local-authority-district/23UB,Cheltenham Borough Council,Cheltenham Municipal Offices,10031418,Bank Transactions,WEST MERCIA ENERGY - GAS -MUNICIPAL OFFICES  -  30/09/2019-31/10/2019,R2101-ADB101,Gas,20/12/2019,"1,949.55 "
http://statistics.data.gov.uk/id/local-authority-district/23UB,Cheltenham Borough Council,Cheltenham Depot,10031379,Bank Transactions,WEST MERCIA ENERGY - ELECTRICITY - CENTRAL DEPOT - SWINDON ROAD   - 01/10/2019-31/10/2019,R2100-ADB103,Electricity,18/12/2019,"3,822.92 "
http://statistics.data.gov.uk/id/local-authority-district/23UB,Cheltenham Borough Council,Cheltenham Depot,10031418,Bank Transactions,WEST MERCIA ENERGY - GAS - CENTRAL DEPOT- 30/09/2019-31/10/2019,R2101-ADB103,Gas,20/12/2019,"1,334.30 "
http://statistics.data.gov.uk/id/local-authority-district/23UB,Cheltenham Borough Council,Cheltenham Depot,10031313,Bank Transactions,"WATER PLUS - 406002149 - ENVIRONMENTAL MAINTENANCE.SWINDON ROAD, CHELTENHAM, - WATER SUPPLY - 23/10/2019-23/11/2019",R2401-ADB103,Water Services - Metered,10/12/2019,736.09 
http://statistics.data.gov.uk/id/local-authority-district/23UB,Cheltenham Borough Council,Phase 3 Development,10031274,Bank Transactions,Acquisition of REDACTED,C1001-CAH039,Acquisition of Buildings,06/12/2019,"185,000.00 "
http://statistics.data.gov.uk/id/local-authority-district/23UB,Cheltenham Borough Council,Phase 3 Development,10031325,Bank Transactions,Purchase of REDACTED,C1001-CAH039,Acquisition of Buildings,02/12/2019,"70,000.00 "
http://statistics.data.gov.uk/id/local-authority-district/23UB,Cheltenham Borough Council,Phase 3 Development,10031333,Bank Transactions,Deposit for Purchase of REDACTED,C1001-CAH039,Acquisition of Buildings,13/12/2019,"18,500.00 "
http://statistics.data.gov.uk/id/local-authority-district/23UB,Cheltenham Borough Council,Phase 3 Development,10031334,Bank Transactions,Purchase of REDACTED,C1001-CAH039,Acquisition of Buildings,13/12/2019,"102,000.00 "
http://statistics.data.gov.uk/id/local-authority-district/23UB,Cheltenham Borough Council,Phase 3 Development,10031340,Bank Transactions,Acquisition of REDACTED,C1001-CAH039,Acquisition of Buildings,10/12/2019,"195,000.00 "
http://statistics.data.gov.uk/id/local-authority-district/23UB,Cheltenham Borough Council,Phase 3 Development,10031360,Bank Transactions,Acquisition of REDACTED,C1001-CAH039,Acquisition of Buildings,12/12/2019,"120,000.00 "
http://statistics.data.gov.uk/id/local-authority-district/23UB,Cheltenham Borough Council,Phase 3 Development,10031386,Bank Transactions,Purchase of REDACTED,C1001-CAH039,Acquisition of Buildings,20/12/2019,"166,500.00 "
http://statistics.data.gov.uk/id/local-authority-district/23UB,Cheltenham Borough Council,"Cemetery, Crematorium and Churchyards",10031379,Bank Transactions,WEST MERCIA ENERGY - ELECTRICITY - CEMETERY & CREMATORIUM  - 01/10/2019-31/10/2019,R2100-CCM001,Electricity,18/12/2019,"1,949.44 "
http://statistics.data.gov.uk/id/local-authority-district/23UB,Cheltenham Borough Council,"Cemetery, Crematorium and Churchyards",10031418,Bank Transactions,WEST MERCIA ENERGY - GAS - CEMETERY & CREMATORIUM- 30/09/2019-31/10/2019,R2101-CCM001,Gas,20/12/2019,"4,548.21 "
http://statistics.data.gov.uk/id/local-authority-district/23UB,Cheltenham Borough Council,"Cemetery, Crematorium and Churchyards",10031326,Bank Transactions,SIEMENS FIN SERV - DDA8949078 - LEASE RENTAL,R4002-CCM001,Tools & Equipment - Lease/Rental,12/12/2019,518.96 
http://statistics.data.gov.uk/id/local-authority-district/23UB,Cheltenham Borough Council,CCTV,10031379,Bank Transactions,WEST MERCIA ENERGY - ELECTRICITY - CCTV @ VARIOUS LOCATIONS  - 01/10/2019-31/10/2019,R2100-CCT001,Electricity,18/12/2019,612.30 
http://statistics.data.gov.uk/id/local-authority-district/23UB,Cheltenham Borough Council,Corporate Management,10031258,Bank Transactions,PUBLIC SECTOR AUDIT - CAPACITY FUNDING AWARDS FOR NEW GARDEN VILLAGE PROJECTS,R4430-COR001,Audit Fees,03/12/2019,"-4,600.00 "
http://statistics.data.gov.uk/id/local-authority-district/23UB,Cheltenham Borough Council,Treasury Management,10031431,Bank Transactions,SERVICE CHARGES - 296489422,R4403-COR006,Bank Charges,30/12/2019,530.85 
http://statistics.data.gov.uk/id/local-authority-district/23UB,Cheltenham Borough Council,Treasury Management,10031431,Bank Transactions,SERVICE CHARGES - 296494000,R4403-COR006,Bank Charges,30/12/2019,936.20 
http://statistics.data.gov.uk/id/local-authority-district/23UB,Cheltenham Borough Council,Treasury Management,10031342,Bank Transactions,CARDNET - 169118221 SERVICE CHARGES - 54043600701602,R4428-COR006,Services - credit card charges,13/12/2019,"1,066.81 "
http://statistics.data.gov.uk/id/local-authority-district/23UB,Cheltenham Borough Council,Treasury Management,10031342,Bank Transactions,CARDNET - 169118221 SERVICE CHARGES - 540436500221866,R4428-COR006,Services - credit card charges,13/12/2019,"2,972.38 "
http://statistics.data.gov.uk/id/local-authority-district/23UB,Cheltenham Borough Council,Treasury Management,10031342,Bank Transactions,CARDNET - 500200738 SERVICE CHARGES -,R4428-COR006,Services - credit card charges,13/12/2019,"2,374.68 "
http://statistics.data.gov.uk/id/local-authority-district/23UB,Cheltenham Borough Council,Car Parks - Off Street Operations,10031379,Bank Transactions,WEST MERCIA ENERGY - ELECTRICITY - CAR PARK - GROSVENOR TERRACE - 01/10/2019-31/10/2019,R2100-CPK001,Electricity,18/12/2019,"1,247.02 "
http://statistics.data.gov.uk/id/local-authority-district/23UB,Cheltenham Borough Council,Car Parks - Off Street Operations,10031379,Bank Transactions,WEST MERCIA ENERGY - ELECTRICITY - CAR PARK - REGENT ARCADE - 01/10/2019-31/10/2019,R2100-CPK001,Electricity,18/12/2019,"1,008.57 "
http://statistics.data.gov.uk/id/local-authority-district/23UB,Cheltenham Borough Council,Car Parks - Off Street Operations,10031431,Bank Transactions,KENNET EQUIPMENT DD181218768401491635,R4002-CPK001,Tools & Equipment - Lease/Rental,30/12/2019,"6,700.14 "
http://statistics.data.gov.uk/id/local-authority-district/23UB,Cheltenham Borough Council,Car Parks - Off Street Operations,10031424,Bank Transactions,S/LINE 90175602 INV 31868395,R4428-CPK001,Services - credit card charges,19/12/2019,"1,415.00 "
http://statistics.data.gov.uk/id/local-authority-district/23UB,Cheltenham Borough Council,Car Parks - Off Street Operations,10031424,Bank Transactions,S/LINE 90308159  INV 26288205,R4428-CPK001,Services - credit card charges,19/12/2019,"6,087.25 "
http://statistics.data.gov.uk/id/local-authority-district/23UB,Cheltenham Borough Council,Cultural - Service Management and Support Services,10031369,Bank Transactions,REDACTED,R2800-CSM001,Insurances - Premises,17/12/2019,"-6,050.00 "
http://statistics.data.gov.uk/id/local-authority-district/23UB,Cheltenham Borough Council,Town Hall Repairs & Maintenance,10031379,Bank Transactions,WEST MERCIA ENERGY - ELECTRICITY - CHELTENHAM TOWN HALL   - 01/10/2019-31/10/2019,R2100-CUL112,Electricity,18/12/2019,"5,188.64 "
http://statistics.data.gov.uk/id/local-authority-district/23UB,Cheltenham Borough Council,Town Hall Repairs & Maintenance,10031418,Bank Transactions,WEST MERCIA ENERGY - GAS - CHELTENHAM TOWN HALL- 30/09/2019-31/10/2019,R2101-CUL112,Gas,20/12/2019,"1,605.34 "
http://statistics.data.gov.uk/id/local-authority-district/23UB,Cheltenham Borough Council,Pittville Pump Room Repairs & Maintenance,10031379,Bank Transactions,WEST MERCIA ENERGY - ELECTRICITY - PITTVILLE PUMP ROOMS - 01/10/2019-31/10/2019,R2100-CUL113,Electricity,18/12/2019,964.72 
http://statistics.data.gov.uk/id/local-authority-district/23UB,Cheltenham Borough Council,Pittville Pump Room Repairs & Maintenance,10031418,Bank Transactions,WEST MERCIA ENERGY - GAS -  PITTVILLE PUMP ROOM  -  30/09/2019-31/10/2019,R2101-CUL113,Gas,20/12/2019,511.10 
http://statistics.data.gov.uk/id/local-authority-district/23UB,Cheltenham Borough Council,Art Gallery & Museum Repairs & Maintenance,10031379,Bank Transactions,WEST MERCIA ENERGY - ELECTRICITY - WILSON ART GALLERY & MUSEUM - 01/10/2019-31/10/2019,R2100-CUL117,Electricity,18/12/2019,"5,347.71 "
http://statistics.data.gov.uk/id/local-authority-district/23UB,Cheltenham Borough Council,Art Gallery & Museum Repairs & Maintenance,10031418,Bank Transactions,WEST MERCIA ENERGY - GAS - WILSON ART GALLERY & MUSEUM-  30/09/2019-31/10/2019,R2101-CUL117,Gas,20/12/2019,"1,830.60 "
http://statistics.data.gov.uk/id/local-authority-district/23UB,Cheltenham Borough Council,Supervision and Management,10031278,Bank Transactions,OPUS ENERGY CORPORATION  - 0921070,R2100-HRA110,Electricity,04/12/2019,"8,428.45 "
http://statistics.data.gov.uk/id/local-authority-district/23UB,Cheltenham Borough Council,Supervision and Management,10031418,Bank Transactions,WEST MERCIA ENERGY - GAS - COOPERS COURT- 30/09/2019-31/10/2019,R2101-HRA110,Gas,20/12/2019,"1,016.55 "
http://statistics.data.gov.uk/id/local-authority-district/23UB,Cheltenham Borough Council,Supervision and Management,10031418,Bank Transactions,WEST MERCIA ENERGY - GAS - GILBERT WARD COURT- 30/09/2019-31/10/2019,R2101-HRA110,Gas,20/12/2019,659.83 
http://statistics.data.gov.uk/id/local-authority-district/23UB,Cheltenham Borough Council,Supervision and Management,10031418,Bank Transactions,WEST MERCIA ENERGY - GAS - GOLDFOOT HOUSE- 30/09/2019-31/10/2019,R2101-HRA110,Gas,20/12/2019,935.91 
http://statistics.data.gov.uk/id/local-authority-district/23UB,Cheltenham Borough Council,Supervision and Management,10031418,Bank Transactions,WEST MERCIA ENERGY - GAS - POPES CLOSE-  30/09/2019-31/10/2019,R2101-HRA110,Gas,20/12/2019,676.24 
http://statistics.data.gov.uk/id/local-authority-district/23UB,Cheltenham Borough Council,Supervision and Management,10031418,Bank Transactions,WEST MERCIA ENERGY - GAS - WALLACE HOUSE-  30/09/2019-31/10/2019,R2101-HRA110,Gas,20/12/2019,979.87 
http://statistics.data.gov.uk/id/local-authority-district/23UB,Cheltenham Borough Council,Recreation Centre Repairs & Maintenance,10031379,Bank Transactions,WEST MERCIA ENERGY - ELECTRICITY - LEISURE CENTRE - TOMMY TAYLORS LANE - 01/10/2019-31/10/2019,R2100-REC111,Electricity,18/12/2019,"9,191.62 "
http://statistics.data.gov.uk/id/local-authority-district/23UB,Cheltenham Borough Council,Recreation Centre Repairs & Maintenance,10031418,Bank Transactions,WEST MERCIA ENERGY - GAS - LEISURE CENTRE - TOMMY TAYLORS LANE  -  30/09/2019-31/10/2019,R2101-REC111,Gas,20/12/2019,"11,433.34 "
http://statistics.data.gov.uk/id/local-authority-district/23UB,Cheltenham Borough Council,Prince of Wales Stadium Repairs & Maintenance,10031326,Bank Transactions,WEST MERCIA ENERGY - ELECTRICITY - PRINCE OF WALES STADIUM      - 01/10/2019-31/10/2019,R2100-REC112,Electricity,12/12/2019,"2,125.65 "
http://statistics.data.gov.uk/id/local-authority-district/23UB,Cheltenham Borough Council,Public Conveniences,10031326,Bank Transactions,WEST MERCIA ENERGY - ELECTRICITY - PUBLIC CONVENIENCE - PITTVILLE PARK   - 01/10/2019-31/10/2019,R2100-REG019,Electricity,12/12/2019,602.17 
Procurement Cards,,,,,,,,,
http://statistics.data.gov.uk/id/local-authority-district/23UB,Cheltenham Borough Council,Parks & Gardens Operations,10031391,Procurement Cards,BUSINESS CHARGE CARD - REDACTED -ECOFFICIENCY,R2706-OPS001,Cleaning - reactive,05/12/2019,504.00 
